bitfinex/quotes_ETHUSD_20251230
["timestamp","ask_amount","ask_price","bid_price","bid_amount"]
[1767111361955,0.3993,2982.3,2981.4,0.002]
[1767111361956,0.3993,2982.3,2981.5,2.3633]
[1767111362155,0.3993,2982.0,2981.3,0.002]
[1767111362356,0.3973,2981.8,2981.3,0.002]
[1767111362971,0.3973,2981.8,2981.0,2.3497]
[1767111363679,0.3933,2981.3,2980.7,2.3477]
[1767111363883,0.3933,2981.8,2981.0,2.3477]
[1767111364191,0.3933,2981.8,2981.4,2.3477]
[1767111364562,0.3933,2982.1,2981.5,5.32443438]
[1767111364897,0.878,2982.3,2981.6,2.3477]
[1767111365187,1.2713,2982.7,2982.0,2.3477]
[1767111365512,0.3933,2982.6,2982.0,2.3477]
[1767111365712,5.32443438,2982.6,2981.5,2.3477]
[1767111365864,0.3933,2982.5,2981.5,2.58247]
[1767111366187,0.3933,2982.3,2981.5,2.58247]
[1767111366357,0.3933,2982.3,2981.5,2.3477]
[1767111367589,0.3933,2982.3,2981.6,2.3477]
[1767111367785,0.3933,2982.6,2981.8,2.3477]
[1767111369291,0.3943,2982.6,2982.0,2.3477]
[1767111369493,0.001,2982.6,2982.2,2.3477]
[1767111369691,0.001,2982.6,2982.3,5.32443438]
[1767111369893,0.878,2982.7,2982.4,2.3477]
[1767111370095,0.001,2982.8,2982.4,2.3477]
[1767111370390,0.001,2982.8,2982.3,5.32443438]
[1767111370391,0.001,2983.0,2982.6,2.3477]
[1767111370821,0.3953,2982.9,2982.0,2.3477]
[1767111372274,0.3953,2982.9,2982.2,2.3477]
[1767111373292,0.3953,2982.9,2982.0,3.35344752]
[1767111373293,0.001,2983.0,2982.6,2.3477]
[1767111373700,0.001,2983.3,2982.6,2.3477]
[1767111373883,0.001,2983.3,2982.7,2.3477]
[1767111376000,0.001,2982.9,2982.7,2.3477]
[1767111376375,0.001,2983.3,2982.8,2.3437]
[1767111376698,0.3973,2983.6,2983.0,7.66813438]
[1767111377099,0.3973,2983.6,2983.0,2.3437]
[1767111377493,0.001,2983.7,2983.0,2.3437]
[1767111377689,0.3973,2983.6,2983.0,2.3437]
[1767111378302,0.3973,2983.6,2983.1,7.66813438]
[1767111378512,0.002,2983.9,2983.3,5.32443438]
[1767111378710,0.002,2984.6,2983.6,2.3437]
[1767111379002,0.878,2984.4,2983.4,5.32443438]
[1767111379186,5.32443438,2984.3,2983.3,2.3437]
[1767111379388,0.878,2984.4,2983.5,5.32443438]
[1767111379623,0.878,2984.4,2983.7,7.66813438]
[1767111379907,0.878,2984.4,2983.8,2.3437]
[1767111380212,0.878,2984.4,2983.9,2.3437]
[1767111381375,0.878,2984.4,2983.3,3.35196219]
[1767111381376,6.20243438,2984.4,2983.3,2.3437]
[1767111381575,5.32443438,2984.1,2983.3,2.3437]
[1767111381881,0.53254344,2984.0,2983.3,2.3437]
[1767111382206,0.53254344,2984.0,2983.0,7.66813438]
[1767111382387,0.53254344,2984.0,2983.1,2.3437]
[1767111382899,5.32443438,2984.1,2983.1,2.3437]
[1767111383074,0.10022718,2984.3,2982.9,2.3437]
[1767111383270,5.32443438,2984.0,2982.9,2.3437]
[1767111383813,5.32443438,2983.9,2982.9,2.3437]
[1767111383977,0.878,2983.8,2982.9,2.3437]
[1767111384176,0.62024344,2983.7,2982.9,2.3437]
[1767111385378,0.62024344,2983.7,2982.1,3.35323919]
[1767111385379,5.32443438,2983.5,2982.2,2.3437]
[1767111385599,5.32443438,2983.5,2982.4,2.3437]
[1767111386383,5.32443438,2983.3,2982.4,2.3437]
[1767111386924,0.878,2983.3,2982.4,2.3437]
[1767111387602,6.20243438,2983.3,2982.4,2.3437]
[1767111387804,0.62024344,2983.2,2982.4,2.3437]
[1767111388812,0.878,2983.3,2982.4,2.3437]
[1767111390483,0.002,2983.2,2982.4,2.3437]
[1767111390683,0.002,2983.2,2981.9,2.3437]
[1767111395404,0.002,2983.2,2982.0,2.3437]
[1767111395587,0.878,2983.7,2982.3,2.3437]
[1767111395934,0.878,2983.7,2982.5,2.3437]
[1767111396284,0.001,2984.2,2982.5,2.3437]
[1767111396484,0.001,2984.2,2983.1,2.3437]
[1767111396715,0.001,2984.2,2983.3,2.3437]
[1767111396907,0.001,2984.2,2983.5,2.3437]
[1767111397497,0.002,2984.4,2983.5,2.3437]
[1767111397498,0.002,2984.4,2983.6,2.3437]
[1767111399698,0.001,2984.5,2983.6,3.35164527]
[1767111399925,0.001,2984.5,2983.7,2.3437]
[1767111400322,0.002,2984.7,2983.7,2.3437]
[1767111400531,0.002,2984.7,2983.9,2.3437]
[1767111401935,0.17609251,2985.4,2984.0,2.3437]
[1767111402231,0.001,2985.4,2984.0,2.3437]
[1767111402409,0.001,2985.4,2984.0,2.68757121]
[1767111402604,0.002,2985.6,2984.0,2.3437]
[1767111403932,0.002,2985.6,2984.1,6.70218826]
[1767111404237,0.002,2985.6,2984.2,1.77754227]
[1767111404400,0.002,2985.6,2984.2,0.89854227]
[1767111404601,0.002,2985.6,2984.3,0.879]
[1767111405319,0.011,2985.6,2984.2,0.89854227]
[1767111405644,0.011,2985.6,2984.3,1.63907305]
[1767111406003,0.011,2985.6,2984.4,3.35075727]
[1767111407048,0.011,2985.6,2984.5,2.2794]
[1767111408026,0.011,2985.6,2984.5,3.35060539]
[1767111408232,0.011,2985.6,2984.6,2.2794]
[1767111408401,0.011,2985.6,2984.8,2.2794]
[1767111408600,0.002,2985.6,2984.8,2.2794]
[1767111410039,0.877,2986.1,2984.8,2.2794]
[1767111410234,0.888,2986.1,2984.8,2.2794]
[1767111410404,0.011,2986.0,2984.8,2.2794]
[1767111410733,0.011,2986.0,2985.0,2.2794]
[1767111411639,0.011,2986.5,2985.0,2.2794]
[1767111412026,0.10022718,2986.5,2985.0,2.2794]
[1767111412228,0.011,2986.4,2985.0,2.2794]
[1767111412411,0.011,2986.3,2985.0,2.2794]
[1767111413024,0.011,2985.9,2985.0,2.2794]
[1767111415141,0.011,2986.3,2985.2,2.2794]
[1767111416432,0.001,2986.6,2985.3,2.2794]
[1767111416433,0.011,2986.5,2985.3,2.2794]
[1767111416637,0.011,2986.5,2985.5,2.2794]
[1767111418436,0.001,2986.6,2985.5,2.2794]
[1767111418641,0.001,2986.6,2985.7,2.2794]
[1767111419135,0.012,2986.6,2985.7,2.2794]
[1767111420051,0.011,2986.4,2985.7,2.2794]
[1767111420536,0.011,2986.4,2985.2,2.253]
[1767111420842,0.011,2986.4,2985.2,2.4783]
[1767111421150,0.011,2986.4,2985.2,3.57514662]
[1767111421313,0.011,2986.4,2985.3,2.253]
[1767111421512,0.002,2986.5,2985.3,2.253]
[1767111421741,0.013,2986.5,2985.4,2.253]
[1767111422043,0.013,2986.5,2985.6,2.253]
[1767111422223,0.013,2986.5,2985.7,2.253]
[1767111423749,0.013,2986.5,2985.4,2.253]
[1767111425846,0.002,2986.5,2985.5,2.253]
[1767111426057,0.002,2986.5,2985.4,3.34958998]
[1767111426058,0.002,2986.5,2985.7,2.253]
[1767111426223,0.012,2986.8,2985.7,2.253]
[1767111426721,0.001,2987.2,2985.7,2.253]
[1767111426919,0.002,2987.7,2986.1,6.94064491]
[1767111427122,0.013,2987.7,2986.3,2.253]
[1767111427475,0.013,2987.7,2986.5,2.253]
[1767111427618,0.011,2987.6,2986.5,2.253]
[1767111428047,0.002,2987.7,2986.5,2.253]
[1767111428245,0.011,2987.6,2986.5,2.253]
[1767111428447,0.002,2987.7,2986.5,2.253]
[1767111428623,0.013,2987.7,2986.7,2.253]
[1767111429727,0.002,2987.7,2986.9,2.253]
[1767111430454,0.013,2987.7,2986.9,2.253]
[1767111431653,0.013,2987.7,2986.6,2.50962]
[1767111431953,0.013,2987.7,2986.6,2.253]
[1767111431954,0.10022718,2987.6,2986.6,2.253]
[1767111432156,0.10022718,2987.6,2985.8,2.253]
[1767111432157,0.10022718,2987.4,2985.8,2.253]
[1767111432357,0.10022718,2987.2,2985.9,2.253]
[1767111432659,0.011,2987.1,2985.9,2.253]
[1767111432834,0.011,2987.1,2986.0,2.4783]
[1767111434158,0.10022718,2987.4,2986.0,2.4783]
[1767111434359,0.011,2987.3,2986.0,2.4783]
[1767111435833,0.011,2987.0,2986.0,2.4783]
[1767111437343,0.011,2987.0,2986.0,2.253]
[1767111439071,0.011,2986.8,2985.4,2.4518]
[1767111439455,0.011,2986.8,2985.5,2.4518]
[1767111439634,0.11122718,2986.8,2985.5,2.4518]
[1767111439840,0.011,2986.7,2985.5,2.4518]
[1767111440150,0.011,2986.5,2985.5,2.4518]
[1767111440659,0.011,2986.4,2985.5,2.4518]
[1767111443649,0.011,2986.4,2985.1,2.4518]
[1767111443848,0.011,2986.2,2985.4,0.001]
[1767111444054,0.01,2986.0,2985.0,0.001]
[1767111444341,0.01,2986.0,2984.8,2.4518]
[1767111444549,0.009,2985.9,2984.8,2.4518]
[1767111444763,0.009,2985.7,2984.3,2.4518]
[1767111445168,0.009,2985.7,2984.4,2.4518]
[1767111445554,0.10022718,2986.3,2984.7,2.4518]
[1767111445555,0.009,2986.2,2984.7,2.4518]
[1767111445758,0.009,2986.2,2984.5,2.4518]
[1767111445959,0.009,2986.2,2984.8,2.4518]
[1767111446772,0.009,2986.1,2984.8,2.4518]
[1767111448652,0.009,2986.7,2984.8,2.4518]
[1767111448976,0.009,2986.5,2984.9,2.4518]
[1767111449774,0.009,2986.5,2984.9,2.3518]
[1767111449976,0.009,2986.5,2984.8,3.35027944]
[1767111449977,0.009,2986.5,2985.1,2.4518]
[1767111450169,0.109,2986.4,2985.1,2.4518]
[1767111451374,0.109,2986.3,2985.1,2.48529971]
[1767111453079,0.109,2986.3,2985.1,2.4518]
[1767111453080,0.109,2986.2,2985.1,2.4518]
[1767111454079,0.109,2986.0,2985.1,2.4518]
[1767111454665,0.109,2986.0,2984.8,2.4528]
[1767111454974,0.109,2985.8,2984.8,2.4528]
[1767111455455,0.109,2985.6,2984.8,0.001]
[1767111455671,0.109,2985.4,2984.8,0.001]
[1767111456801,0.109,2985.4,2984.5,2.4518]
[1767111457401,0.108,2985.6,2984.5,2.69698]
[1767111457599,0.876,2985.4,2984.5,2.69698]
[1767111458310,0.108,2985.6,2984.5,0.24518]
[1767111458625,0.10022718,2985.9,2984.3,2.4518]
[1767111458626,0.108,2985.4,2984.3,2.4518]
[1767111459177,0.108,2985.2,2984.0,2.4518]
[1767111459392,0.108,2985.1,2984.0,2.4518]
[1767111459997,0.108,2985.1,2984.2,2.4528]
[1767111460503,0.108,2985.1,2983.9,2.4538]
[1767111460878,0.10022718,2985.5,2984.2,2.4518]
[1767111460879,0.983,2985.0,2984.2,2.4518]
[1767111461279,0.107,2985.0,2984.2,2.4518]
[1767111461584,0.002,2985.4,2984.4,2.4518]
[1767111462188,0.10022718,2986.5,2984.8,2.4518]
[1767111462189,0.109,2986.2,2984.8,2.4518]
[1767111462407,0.877,2986.1,2984.8,2.4518]
[1767111462608,0.877,2986.1,2985.0,2.4518]
[1767111463313,0.109,2985.9,2985.0,2.4518]
[1767111465215,0.877,2985.8,2985.0,2.4518]
[1767111465613,0.986,2985.8,2985.0,2.4518]
[1767111466685,0.109,2985.7,2985.0,2.4518]
[1767111466911,0.109,2985.7,2984.6,2.3506]
[1767111467112,0.109,2985.7,2984.7,2.67356]
[1767111467319,0.109,2985.7,2984.7,2.3506]
[1767111469093,0.111,2985.7,2984.7,2.3506]
[1767111471015,0.111,2985.7,2984.8,2.3506]
[1767111471637,0.879,2985.7,2984.8,2.3506]
[1767111472185,0.879,2985.7,2984.5,0.88]
[1767111472392,0.109,2985.6,2984.6,2.3506]
[1767111472600,0.109,2985.5,2984.6,2.3506]
[1767111472925,0.109,2985.5,2984.6,2.92081563]
[1767111473416,0.109,2985.5,2984.6,2.3506]
[1767111473719,0.109,2985.5,2984.5,0.001]
[1767111474301,0.877,2985.4,2984.6,2.3506]
[1767111474499,0.986,2985.4,2984.6,2.3506]
[1767111477020,0.002,2985.7,2984.6,2.3506]
[1767111477222,0.877,2985.6,2984.6,2.92082356]
[1767111477426,0.109,2985.5,2984.6,2.92082356]
[1767111477925,0.109,2985.5,2984.6,2.3506]
[1767111478124,0.109,2985.5,2984.5,0.001]
[1767111478329,0.109,2985.5,2984.5,2.3516]
[1767111481131,0.109,2985.5,2984.1,0.001]
[1767111481132,0.108,2985.3,2984.1,0.001]
[1767111481630,0.108,2985.3,2984.1,2.3516]
[1767111482032,0.108,2985.1,2984.1,2.3516]
[1767111482332,0.108,2985.1,2984.1,2.92208455]
[1767111482503,0.108,2985.1,2984.2,2.3506]
[1767111483435,0.108,2985.6,2984.2,2.3506]
[1767111483735,0.11,2985.7,2984.4,2.3506]
[1767111485733,0.108,2985.6,2984.4,2.3506]
[1767111487845,0.108,2985.5,2984.4,2.3506]
[1767111488836,0.987,2985.7,2984.5,2.4211]
[1767111489140,0.108,2985.6,2984.5,2.4211]
[1767111489341,0.879,2985.7,2984.6,2.4211]
[1767111489342,0.002,2985.7,2984.6,2.4211]
[1767111489528,0.002,2985.7,2984.8,2.4211]
[1767111489723,0.985,2986.2,2984.7,1.78452833]
[1767111490019,0.11,2986.1,2984.8,2.4211]
[1767111490424,0.11,2986.1,2984.9,2.4211]
[1767111491524,0.877,2986.2,2984.9,2.4211]
[1767111491845,0.11,2986.1,2985.1,2.4211]
[1767111492729,0.11,2986.1,2985.2,2.4211]
[1767111492925,0.877,2986.2,2985.2,2.4211]
[1767111494270,0.987,2986.2,2985.2,2.4211]
[1767111494835,0.989,2986.2,2985.2,2.4211]
[1767111495156,0.989,2986.2,2985.4,2.4211]
[1767111496363,0.11,2986.1,2985.4,2.4211]
[1767111496946,0.11,2986.1,2984.8,2.3971]
[1767111498449,0.879,2986.2,2984.8,2.3971]
[1767111498781,0.11,2986.1,2984.9,2.3971]
[1767111498981,0.11,2986.1,2985.1,2.3971]
[1767111501407,0.002,2986.2,2985.1,2.3971]
[1767111501681,0.112,2986.2,2985.2,2.3971]
[1767111502586,0.002,2986.6,2985.3,6.63418331]
[1767111502756,0.002,2986.9,2985.7,6.63418331]
[1767111503081,0.002,2986.9,2985.8,2.3971]
[1767111503959,0.002,2986.1,2985.8,2.3971]
[1767111504449,0.002,2986.1,2985.3,4.22871096]
[1767111504450,0.112,2986.1,2985.4,2.3971]
[1767111505089,0.112,2986.1,2984.8,2.3971]
[1767111505392,0.112,2986.1,2985.0,2.3971]
[1767111508260,0.112,2986.1,2985.1,2.3971]
[1767111511096,0.002,2986.1,2985.1,2.3971]
[1767111511308,0.11,2986.6,2985.3,2.3971]
[1767111512181,0.11,2986.6,2985.3,3.34963892]
[1767111512403,0.11,2986.6,2985.5,2.3971]
[1767111512590,0.002,2986.1,2985.5,2.3971]
[1767111512792,0.11,2986.6,2985.5,2.3971]
[1767111513236,0.002,2986.9,2985.5,2.3971]
[1767111513381,0.114,2986.9,2985.7,2.3971]
[1767111513582,0.114,2986.9,2985.9,2.3971]
[1767111516641,0.114,2986.9,2985.5,2.3971]
[1767111518437,0.112,2986.7,2985.5,2.3971]
[1767111518645,0.10022718,2987.2,2985.5,2.3971]
[1767111518646,0.10022718,2987.9,2986.3,6.63418331]
[1767111518809,0.10022718,2987.9,2985.5,6.69904046]
[1767111518810,0.112,2987.2,2986.5,2.3971]
[1767111519120,0.112,2987.2,2985.5,7.14006249]
[1767111519121,0.112,2987.2,2986.2,2.3971]
[1767111519327,0.112,2987.5,2986.2,2.3971]
[1767111520339,0.112,2987.5,2986.5,2.3971]
[1767111520844,0.876,2987.8,2986.5,2.3971]
[1767111521045,0.114,2987.3,2986.5,2.3971]
[1767111521248,0.002,2987.3,2986.7,2.3971]
[1767111521456,0.114,2987.3,2986.7,2.3971]
[1767111522049,0.002,2987.3,2986.7,2.3971]
[1767111524153,0.114,2987.3,2986.7,2.3971]
[1767111524782,0.114,2987.3,2986.3,2.3971]
[1767111525461,0.002,2987.3,2986.5,2.3971]
[1767111525673,0.002,2987.3,2986.7,2.3971]
[1767111527782,0.114,2988.0,2986.7,2.4207]
[1767111527962,0.114,2988.0,2986.9,2.4207]
[1767111528159,0.114,2988.0,2987.1,2.4207]
[1767111528586,0.002,2987.3,2987.1,2.4207]
[1767111529575,0.002,2987.3,2987.0,2.6652695]
[1767111530282,0.002,2987.3,2986.4,2.4207]
[1767111530455,0.116,2987.3,2986.5,2.4207]
[1767111530652,0.002,2987.3,2986.5,2.4207]
[1767111530868,0.002,2987.3,2986.6,2.4207]
[1767111532597,0.878,2988.1,2986.6,2.4207]
[1767111532598,0.116,2988.0,2986.6,2.4207]
[1767111532792,0.116,2988.0,2986.8,2.4207]
[1767111534701,0.002,2988.1,2987.0,2.4207]
[1767111534702,0.118,2988.1,2987.0,2.4207]
[1767111536769,0.002,2988.1,2987.2,2.4207]
[1767111537673,0.116,2988.6,2987.2,2.4207]
[1767111537876,0.116,2988.6,2987.1,6.69545712]
[1767111537877,0.116,2988.6,2987.4,2.4207]
[1767111538500,0.116,2988.6,2987.5,2.4207]
[1767111538697,0.17489513,2988.8,2987.7,2.4207]
[1767111539003,0.12,2989.3,2987.7,2.4207]
[1767111539319,0.12,2989.3,2988.2,2.3804]
[1767111539320,0.002,2989.3,2988.2,2.3804]
[1767111539520,0.002,2989.3,2988.4,2.3804]
[1767111539824,0.12,2989.3,2988.4,2.3804]
[1767111540332,0.21822718,2990.0,2988.4,2.3804]
[1767111540626,0.118,2989.7,2988.6,2.3804]
[1767111540826,0.118,2989.7,2988.7,2.3804]
[1767111541027,0.118,2989.7,2988.9,2.3804]
[1767111541395,0.118,2989.9,2988.9,2.3804]
[1767111543295,0.118,2990.3,2989.0,2.3804]
[1767111543612,0.118,2990.7,2989.1,2.3804]
[1767111543814,0.118,2990.7,2989.0,0.878]
[1767111543815,0.118,2991.5,2989.4,2.3804]
[1767111544013,0.10022718,2991.9,2989.6,2.3804]
[1767111544014,0.118,2991.4,2989.6,2.3804]
[1767111544195,0.10022718,2990.8,2989.6,2.3804]
[1767111544395,0.118,2990.7,2989.6,2.3804]
[1767111544623,0.10022718,2991.0,2989.6,2.3804]
[1767111544826,0.10022718,2990.8,2989.6,2.3804]
[1767111545009,0.118,2990.5,2989.6,2.3804]
[1767111545419,0.002,2989.9,2989.6,2.3804]
[1767111545616,0.002,2989.9,2988.7,2.3804]
[1767111545924,0.002,2989.9,2989.1,2.3804]
[1767111546638,0.002,2989.9,2988.8,1.45063585]
[1767111546639,0.12,2991.0,2988.9,2.3804]
[1767111546814,0.12,2991.0,2989.6,2.3804]
[1767111547337,0.12,2991.2,2989.6,2.3804]
[1767111547540,0.12,2991.2,2989.9,2.3804]
[1767111547740,0.10022718,2991.3,2989.9,2.3804]
[1767111547741,0.10022718,2991.1,2989.9,2.3804]
[1767111547908,0.12,2991.0,2989.9,2.3804]
[1767111548342,0.10022718,2991.3,2989.9,2.70624]
[1767111548644,0.12,2991.3,2989.9,2.70624]
[1767111548846,0.12,2991.1,2989.9,2.3804]
[1767111549140,0.12,2990.9,2989.9,2.3804]
[1767111549440,0.12,2991.2,2989.9,2.3804]
[1767111550136,0.12,2991.2,2990.0,2.3804]
[1767111550540,0.12,2991.7,2990.2,2.3804]
[1767111550708,0.12,2991.7,2990.4,2.3804]
[1767111550908,0.12,2991.7,2990.4,5.72437591]
[1767111551110,0.995,2992.1,2990.5,2.3804]
[1767111551315,0.12,2992.0,2990.7,2.3804]
[1767111551841,0.12,2991.9,2990.7,2.3804]
[1767111553660,0.12,2991.7,2990.4,2.3804]
[1767111553860,0.10022718,2991.8,2990.4,2.3804]
[1767111553861,0.12,2991.4,2990.4,2.3804]
[1767111554058,0.10022718,2991.5,2990.4,2.3804]
[1767111554059,0.12,2991.1,2990.4,2.3804]
[1767111554452,0.12,2991.1,2989.6,3.34490476]
[1767111554453,0.22022718,2991.0,2989.7,2.3804]
[1767111554760,0.12,2990.9,2989.7,2.3804]
[1767111555762,0.12,2991.1,2989.8,2.3804]
[1767111556059,0.877,2991.2,2990.0,2.4155]
[1767111556263,0.12,2991.1,2990.0,2.4155]
[1767111557639,0.12,2991.0,2989.4,2.4155]
[1767111557844,0.10022718,2990.9,2989.4,2.4155]
[1767111558036,0.12,2990.8,2989.4,2.4155]
[1767111559239,0.12,2990.6,2989.4,2.4155]
[1767111561371,0.002,2991.2,2989.6,2.4155]
[1767111561372,0.12,2991.0,2989.6,2.4155]
[1767111562555,0.12,2991.0,2989.8,2.4155]
[1767111562872,0.002,2991.2,2990.0,2.4155]
[1767111563174,0.122,2991.1,2990.0,2.4155]
[1767111563886,0.122,2991.1,2989.5,2.4155]
[1767111564169,0.122,2990.9,2989.5,2.4155]
[1767111565769,0.122,2990.9,2989.1,2.4155]
[1767111565956,0.122,2991.0,2989.1,2.4155]
[1767111566162,0.122,2990.9,2989.1,2.4155]
[1767111566581,0.122,2990.8,2989.1,2.4155]
[1767111566773,0.122,2990.7,2989.1,2.4155]
[1767111567070,0.122,2990.5,2989.1,2.4155]
[1767111567653,0.122,2990.5,2989.2,2.4155]
[1767111567854,0.124,2991.2,2989.5,2.4155]
[1767111568050,0.124,2991.2,2990.8,0.47856327]
[1767111568051,0.002,2991.2,2990.8,0.47856327]
[1767111568372,0.002,2991.2,2990.6,2.4155]
[1767111568605,0.002,2991.2,2990.2,2.4155]
[1767111568606,0.124,2991.2,2990.2,2.4155]
[1767111568809,0.002,2991.2,2990.4,2.4155]
[1767111569212,0.875,2991.8,2990.9,2.4155]
[1767111569412,0.875,2991.8,2990.9,2.89647871]
[1767111569706,0.875,2991.8,2990.9,3.82444733]
[1767111569872,0.10022718,2992.8,2991.1,2.4155]
[1767111569873,0.124,2992.8,2991.1,2.4155]
[1767111570086,0.875,2992.7,2991.1,2.4155]
[1767111570389,0.124,2992.6,2991.1,2.4155]
[1767111570917,0.124,2992.6,2990.6,2.4155]
[1767111571118,0.002,2991.2,2990.6,2.4155]
[1767111571411,0.002,2991.2,2990.2,3.34418313]
[1767111571412,0.126,2991.2,2990.2,2.4155]
[1767111571612,0.126,2991.2,2989.8,2.4155]
[1767111571613,0.124,2991.0,2989.8,2.4155]
[1767111571974,0.124,2991.0,2989.1,2.4155]
[1767111572224,0.124,2991.0,2989.3,2.4155]
[1767111572418,0.999,2990.9,2989.4,0.03345152]
[1767111572581,0.875,2990.8,2989.5,2.4155]
[1767111572780,0.875,2990.8,2989.7,2.4155]
[1767111573090,0.875,2990.8,2989.9,2.4155]
[1767111573482,0.124,2990.7,2989.3,2.4155]
[1767111573899,0.124,2990.5,2989.3,2.4155]
[1767111574210,0.124,2990.5,2989.1,2.4155]
[1767111574905,0.124,2990.5,2989.2,0.03345376]
[1767111575209,0.124,2990.5,2989.3,0.03345264]
[1767111575378,0.4342605,2990.6,2989.0,0.001]
[1767111575379,0.124,2990.3,2989.0,2.4165]
[1767111575581,0.124,2990.3,2989.1,0.03345488]
[1767111575776,0.875,2990.4,2989.1,2.44895488]
[1767111576192,0.10022718,2991.1,2989.1,2.44895488]
[1767111576193,0.126,2991.2,2989.4,3.34515287]
[1767111576391,0.002,2991.2,2989.7,2.4155]
[1767111576602,0.002,2991.2,2989.9,2.4155]
[1767111576826,0.126,2991.2,2989.8,2.4155]
[1767111577325,0.126,2991.2,2990.0,2.4155]
[1767111579101,0.126,2991.2,2990.1,2.44894369]
[1767111579315,0.126,2991.2,2990.1,2.4155]
[1767111579690,0.126,2991.2,2989.6,2.4155]
[1767111580010,0.124,2991.0,2989.6,3.2925]
[1767111580923,0.124,2991.0,2989.6,2.4155]
[1767111581925,0.124,2991.0,2989.7,0.03344817]
[1767111582132,0.124,2991.0,2989.7,2.4155]
[1767111583138,0.002,2991.2,2989.9,2.4155]
[1767111583426,0.124,2991.1,2990.1,2.4155]
[1767111585945,0.877,2991.2,2990.1,2.4155]
[1767111587009,0.124,2991.1,2990.1,2.4155]
[1767111587707,0.124,2991.1,2990.2,0.03344257]
[1767111588256,0.124,2991.1,2990.2,2.42904257]
[1767111588411,0.877,2991.2,2990.2,2.3956]
[1767111588609,0.124,2991.1,2990.2,2.3956]
[1767111589526,0.002,2991.2,2990.4,2.3956]
[1767111589733,0.126,2991.9,2990.4,2.42904034]
[1767111589915,0.126,2991.9,2990.5,2.3956]
[1767111590247,0.126,2991.9,2990.5,2.42903922]
[1767111590433,0.126,2991.9,2990.7,2.3956]
[1767111590745,1.001,2992.0,2990.7,2.3956]
[1767111591053,0.126,2991.9,2990.7,2.3956]
[1767111592850,0.126,2991.9,2990.7,2.42903698]
[1767111593622,0.126,2991.9,2990.7,2.3956]
[1767111594332,0.875,2992.0,2990.7,2.75629698]
[1767111594751,0.002,2991.9,2990.7,2.75629698]
[1767111595138,0.002,2991.9,2990.8,2.3956]
[1767111595759,0.002,2991.9,2991.0,2.3956]
[1767111595925,0.002,2991.9,2991.2,2.3956]
[1767111596125,0.002,2991.9,2991.4,2.3956]
[1767111596953,0.002,2992.4,2991.4,2.3956]
[1767111598685,0.67206536,2993.0,2991.3,6.9354381]
[1767111598842,0.67206536,2993.0,2991.8,2.3956]
[1767111599167,0.128,2992.9,2991.8,2.3956]
[1767111599367,0.54406536,2993.0,2991.8,2.3956]
[1767111600156,0.6721,2994.0,2992.5,2.3956]
[1767111600528,0.6721,2993.9,2992.2,2.3956]
[1767111600731,0.6721,2993.9,2992.3,2.3956]
[1767111600936,0.6721,2993.9,2992.5,2.3956]
[1767111601553,0.6721,2993.9,2992.5,3.2726]
[1767111602141,0.6721,2993.9,2991.7,2.3589]
[1767111602142,0.6721,2993.7,2991.7,2.3589]
[1767111602332,0.6721,2993.7,2991.9,2.3589]
[1767111602535,0.6721,2993.7,2992.0,2.3589]
[1767111602730,0.6721,2993.7,2992.1,2.3589]
[1767111603173,0.002,2992.4,2992.1,2.3589]
[1767111603367,0.6721,2993.4,2992.3,2.3589]
[1767111604028,0.6741,2993.5,2992.3,2.3589]
[1767111605073,0.6741,2993.5,2991.9,2.3589]
[1767111605074,0.6741,2993.4,2991.9,2.3589]
[1767111605428,0.77432718,2993.4,2991.9,2.3589]
[1767111605664,0.6741,2993.0,2991.9,2.3589]
[1767111605872,1.5481,2992.9,2992.0,0.03342245]
[1767111606188,0.6741,2993.5,2992.3,6.6081781]
[1767111606339,0.002,2993.6,2992.5,2.3589]
[1767111606930,0.002,2993.6,2992.4,0.66081781]
[1767111607132,0.002,2993.6,2992.5,2.3589]
[1767111607464,0.002,2993.6,2992.7,2.3589]
[1767111607768,0.6761,2993.6,2992.5,2.3589]
[1767111608081,0.10022718,2993.5,2992.0,2.3589]
[1767111608274,0.6741,2993.4,2992.0,2.3589]
[1767111608457,0.6741,2993.2,2992.0,2.3589]
[1767111608661,0.6741,2993.0,2992.0,2.3589]
[1767111608974,0.10022718,2993.3,2992.2,2.3589]
[1767111608975,0.6741,2993.3,2992.2,2.3589]
[1767111609455,0.876,2993.6,2992.4,2.3589]
[1767111609649,0.876,2993.6,2992.6,2.3589]
[1767111609830,0.876,2993.6,2992.2,2.3589]
[1767111610031,0.876,2993.6,2992.4,2.3589]
[1767111610232,0.6741,2993.5,2992.4,2.3589]
[1767111611364,0.6741,2993.5,2992.0,0.001]
[1767111611365,0.002,2993.6,2992.6,2.3589]
[1767111611950,0.6741,2993.5,2992.4,0.03341799]